fUST/lending_fUST_20250828
["ID","MTS","AMOUNT","RATE_DAILY","PERIOD"]
[381677790,1756311055050,-1221.32,0.00022465,2]
[381677792,1756311055060,-727.62,0.00022465,2]
[381677795,1756311055071,-480.0,0.00022465,2]
[381677797,1756311055081,-480.0,0.00022465,2]
[381677799,1756311055091,-480.0,0.00022465,2]
[381677801,1756311055100,-707.20398483,0.00022465,2]
[381677816,1756311055301,-480.0,0.00022465,2]
[381677817,1756311055321,-480.0,0.00022465,2]
[381677818,1756311055331,-480.0,0.00022465,2]
[381677819,1756311055341,-480.0,0.00022465,2]
[381677820,1756311055350,-480.0,0.00022465,2]
[381677821,1756311055360,-480.0,0.00022465,2]
[381677822,1756311055369,-490.89,0.00022465,2]
[381677823,1756311055379,-1046.19,0.00022465,2]
[381677824,1756311055389,-2667.99,0.00022465,2]
[381677825,1756311055399,-480.0,0.00022465,2]
[381677826,1756311055408,-4177.22,0.00022465,2]
[381677827,1756311055418,-480.0,0.00022465,2]
[381677828,1756311055428,-3762.56,0.00022465,2]
[381677829,1756311055438,-842.38,0.00022465,2]
[381677830,1756311055448,-2156.61,0.00022465,2]
[381677831,1756311055457,-512.7,0.00022465,2]
[381677832,1756311055468,-480.0,0.00022465,2]
[381677833,1756311055478,-480.0,0.00022465,2]
[381677834,1756311055487,-1424.9,0.00022465,2]
[381677835,1756311055497,-480.0,0.00022465,2]
[381677836,1756311055506,-507.96,0.00022465,2]
[381677837,1756311055516,-295.60708861,0.00022465,2]
[381677838,1756311055525,-480.0,0.00022465,2]
[381677839,1756311055535,-816.21,0.00022465,2]
[381677840,1756311055545,-418.97263939,0.00022465,2]
[381677842,1756311055554,-480.0,0.00022465,2]
[381677844,1756311055563,-480.0,0.00022465,2]
[381677845,1756311055573,-480.0,0.00022465,2]
[381677847,1756311055583,-713.44,0.00022465,2]
[381677849,1756311055592,-480.0,0.00022465,2]
[381677851,1756311055602,-480.0,0.00022465,2]
[381677853,1756311055611,-619.45,0.00022465,2]
[381677855,1756311055621,-997.05,0.00022465,2]
[381677857,1756311055631,-531.75,0.00022465,2]
[381677859,1756311055643,-2083.2,0.00022465,2]
[381677861,1756311055652,-480.0,0.00022465,2]
[381677863,1756311055662,-1088.15,0.00022465,2]
[381677865,1756311055672,-1106.43,0.00022465,2]
[381677867,1756311055681,-480.0,0.00022465,2]
[381677869,1756311055691,-606.09,0.00022465,2]
[381677871,1756311055701,-596.76,0.00022465,2]
[381677873,1756311055710,-480.0,0.00022465,2]
[381677875,1756311055720,-480.0,0.00022465,2]
[381677877,1756311055730,-480.0,0.00022465,2]
[381677879,1756311055739,-622.23,0.00022465,2]
[381677881,1756311055749,-480.0,0.00022465,2]
[381677883,1756311055759,-480.0,0.00022465,2]
[381677885,1756311055769,-180.63,0.00022465,2]
[381677887,1756311055778,-1205.24,0.00022465,2]
[381677889,1756311055788,-271.58,0.00022465,2]
[381677891,1756311055797,-335.82975421,0.00022473,2]
[381677893,1756311055807,-217.23771399,0.00022494,2]
[381677895,1756311055816,-160.0,0.00022494,2]
[381677897,1756311055826,-529.56067766,0.00022494,2]
[381677899,1756311055837,-12707.75045307,0.00022494,2]
[381677901,1756311055847,-160.0,0.00022495,2]
[381677903,1756311055856,-160.0,0.00022495,2]
[381677905,1756311055866,-417.15472785,0.00022495,2]
[381677907,1756311055875,-216.14835892,0.00022495,2]
[381677909,1756311055886,-425.44119842,0.00022495,2]
[381677911,1756311055895,-160.0,0.00022495,2]
[381677913,1756311055905,-160.0,0.00022495,2]
[381677915,1756311055915,-160.0,0.00022495,2]
[381677917,1756311055924,-845.298898,0.00022495,2]
[381677919,1756311055934,-232.59867797,0.00022495,2]
[381677921,1756311055943,-12863.2042905,0.00022496,2]
[381677923,1756311055953,-46108.0,0.000225,2]
[381677925,1756311055963,-647.0,0.000225,2]
[381677927,1756311055973,-76157.5475657,0.00022516,2]
[381677929,1756311055983,-217.31728907,0.00022521,2]
[381677931,1756311055993,-1000.0,0.00022521,2]
[381677933,1756311056003,-1000.0,0.00022521,2]
[381677935,1756311056013,-1000.0,0.00022521,2]
[381677937,1756311056023,-764.85274484,0.00022521,2]
[381677939,1756311056032,-1000.0,0.00022521,2]
[381677941,1756311056042,-1000.0,0.00022521,2]
[381677943,1756311056052,-1000.0,0.00022521,2]
[381677945,1756311056061,-1000.0,0.00022521,2]
[381677947,1756311056070,-2000.0,0.00022544,2]
[381677949,1756311056080,-420.0,0.00022638,2]
[381677951,1756311056090,-10341.46823571,0.00022639,2]
[381677953,1756311056100,-950.0,0.00022701,2]
[381677955,1756311056110,-199.3005907,0.00022701,2]
[381677957,1756311056124,-198.0,0.00022701,2]
[381677959,1756311056133,-500.0,0.00022701,2]
[381677961,1756311056143,-151.0,0.00022701,2]
[381677963,1756311056154,-151.0,0.00022701,2]
[381677965,1756311056163,-151.0,0.00022701,2]
[381677967,1756311056173,-151.0,0.00022701,2]
[381677969,1756311056183,-1000.0,0.00022721,2]
[381677971,1756311056194,-1000.0,0.00022721,2]
[381677973,1756311056203,-250.0,0.00022721,2]
[381677975,1756311056213,-1000.0,0.00022721,2]
[381677977,1756311056223,-1000.0,0.00022721,2]
[381677979,1756311056232,-1000.0,0.00022721,2]
[381677981,1756311056242,-1000.0,0.00022721,2]
[381677983,1756311056252,-1006.92283959,0.00022721,2]
[381677985,1756311056262,-1000.0,0.00022721,2]
[381677987,1756311056272,-500.0,0.00022721,2]
[381677989,1756311056282,-1000.0,0.00022721,2]
[381677991,1756311056291,-681.72219964,0.00022721,2]
[381677993,1756311056301,-1000.0,0.00022721,2]
[381677995,1756311056310,-3328.08323301,0.00022721,2]
[381677997,1756311056319,-1000.0,0.00022721,2]
[381677999,1756311056329,-480.0,0.00022739,2]
[381678001,1756311056339,-480.0,0.00022739,2]
[381678003,1756311056349,-480.0,0.00022739,2]
[381678005,1756311056358,-480.0,0.00022739,2]
[381678007,1756311056367,-480.0,0.00022739,2]
[381678009,1756311056377,-480.0,0.00022739,2]
[381678011,1756311056389,-480.0,0.00022739,2]
[381678013,1756311056398,-480.0,0.00022739,2]
[381678015,1756311056408,-480.0,0.00022739,2]
[381678017,1756311056417,-480.0,0.00022739,2]
[381678019,1756311056427,-480.0,0.00022739,2]
[381678021,1756311056437,-440.96432666,0.00022739,2]
[381678023,1756311056447,-480.0,0.00022739,2]
[381678025,1756311056456,-480.0,0.00022739,2]
[381678027,1756311056466,-480.0,0.00022739,2]
[381678029,1756311056476,-722.8,0.00022739,2]
[381678031,1756311056486,-480.0,0.00022739,2]
[381678033,1756311056496,-678.46,0.00022739,2]
[381678035,1756311056506,-480.0,0.00022739,2]
[381678037,1756311056515,-556.25,0.00022739,2]
[381678039,1756311056525,-186.25466058,0.00022739,2]
[381678041,1756311056534,-480.0,0.00022739,2]
[381678043,1756311056544,-480.0,0.00022739,2]
[381678045,1756311056554,-480.0,0.00022739,2]
[381678047,1756311056564,-480.0,0.00022739,2]
[381678049,1756311056574,-480.0,0.00022739,2]
[381678051,1756311056584,-480.0,0.00022739,2]
[381678053,1756311056593,-275.20383491,0.00022739,2]
[381678055,1756311056603,-480.0,0.00022739,2]
[381678057,1756311056612,-480.0,0.00022739,2]
[381678059,1756311056621,-480.0,0.00022739,2]
[381678061,1756311056631,-480.0,0.00022739,2]
[381678063,1756311056640,-480.0,0.00022739,2]
[381678064,1756311056650,-1062.05,0.00022739,2]
[381678066,1756311056660,-480.0,0.00022739,2]
[381678068,1756311056670,-480.0,0.00022739,2]
[381678070,1756311056679,-480.0,0.00022739,2]
[381678073,1756311056689,-480.0,0.00022739,2]
[381678075,1756311056699,-590.36,0.00022739,2]
[381678077,1756311056709,-480.0,0.00022739,2]
[381678078,1756311056720,-578.77,0.00022739,2]
[381678080,1756311056729,-480.0,0.00022739,2]
[381678082,1756311056739,-480.0,0.00022739,2]
[381678085,1756311056749,-1836.12,0.00022739,2]
[381678086,1756311056758,-480.0,0.00022739,2]
[381678089,1756311056768,-1071.07,0.00022739,2]
[381678091,1756311056778,-582.17,0.00022739,2]
[381678092,1756311056787,-576.95,0.00022739,2]
[381678095,1756311056797,-480.0,0.00022739,2]
[381678097,1756311056807,-480.0,0.00022739,2]
[381678099,1756311056818,-765.75,0.00022739,2]
[381678101,1756311056827,-480.0,0.00022739,2]
[381678103,1756311056837,-480.0,0.00022739,2]
[381678105,1756311056847,-480.0,0.00022739,2]
[381678106,1756311056858,-480.0,0.00022739,2]
[381678108,1756311056870,-480.0,0.00022739,2]
[381678110,1756311056882,-614.39,0.00022739,2]
[381678113,1756311056892,-480.0,0.00022739,2]
[381678114,1756311056902,-480.0,0.00022739,2]
[381678117,1756311056912,-1104.25,0.00022739,2]
[381678119,1756311056922,-480.0,0.00022739,2]
[381678120,1756311056932,-480.0,0.00022739,2]
[381678122,1756311056942,-480.0,0.00022739,2]
[381678124,1756311056952,-480.0,0.00022739,2]
[381678126,1756311056963,-480.0,0.00022739,2]
[381678128,1756311056972,-480.0,0.00022739,2]
[381678130,1756311056982,-591.79482437,0.00022739,2]
[381678132,1756311056992,-480.0,0.00022739,2]
[381678134,1756311057001,-480.0,0.00022739,2]
[381678136,1756311057011,-480.0,0.00022739,2]
[381678138,1756311057020,-352.72304414,0.00022739,2]
[381678140,1756311057029,-480.0,0.00022739,2]
[381678142,1756311057039,-480.0,0.00022739,2]
[381678144,1756311057048,-480.0,0.00022739,2]
[381678146,1756311057058,-480.0,0.00022739,2]
[381678148,1756311057069,-480.0,0.00022739,2]
[381678150,1756311057078,-480.0,0.00022739,2]
[381678152,1756311057089,-546.1,0.00022739,2]
[381678154,1756311057098,-480.0,0.00022739,2]
[381678156,1756311057108,-480.0,0.00022739,2]
[381678158,1756311057121,-480.0,0.00022739,2]
[381678160,1756311057130,-480.0,0.00022739,2]
[381678162,1756311057141,-480.0,0.00022739,2]
[381678164,1756311057150,-480.0,0.00022739,2]
[381678166,1756311057162,-480.0,0.00022739,2]
[381678168,1756311057172,-480.0,0.00022739,2]
[381678170,1756311057182,-480.0,0.00022739,2]
[381678172,1756311057194,-480.0,0.00022739,2]
[381678174,1756311057203,-480.0,0.00022739,2]
[381678176,1756311057214,-685.9,0.00022739,2]
[381678178,1756311057223,-480.0,0.00022739,2]
[381678180,1756311057232,-495.66,0.00022739,2]
[381678182,1756311057242,-480.0,0.00022739,2]
[381678184,1756311057253,-480.0,0.00022739,2]
[381678186,1756311057262,-480.0,0.00022739,2]
[381678188,1756311057272,-480.0,0.00022739,2]
[381678190,1756311057281,-480.0,0.00022739,2]
[381678192,1756311057291,-480.0,0.00022739,2]
[381678194,1756311057300,-480.0,0.00022739,2]
[381678196,1756311057309,-510.78,0.00022739,2]
[381678198,1756311057319,-735.88,0.00022739,2]
[381678200,1756311057329,-480.0,0.00022739,2]
[381678201,1756311057339,-480.0,0.00022739,2]
[381678203,1756311057349,-480.0,0.00022739,2]
[381678205,1756311057358,-633.35,0.00022739,2]
[381678207,1756311057368,-480.0,0.00022739,2]
[381678209,1756311057378,-480.0,0.00022739,2]
[381678211,1756311057388,-1061.55,0.00022739,2]
[381678213,1756311057398,-691.52,0.00022739,2]
[381678215,1756311057409,-480.0,0.00022739,2]
[381678217,1756311057419,-480.0,0.00022739,2]
[381678219,1756311057429,-722.25,0.00022739,2]
[381678221,1756311057441,-480.0,0.00022739,2]
[381678223,1756311057450,-480.0,0.00022739,2]
[381678225,1756311057460,-480.0,0.00022739,2]
[381678227,1756311057470,-480.0,0.00022739,2]
[381678229,1756311057479,-1162.32,0.00022739,2]
[381678231,1756311057489,-480.0,0.00022739,2]
[381678233,1756311057499,-480.0,0.00022739,2]
[381678235,1756311057509,-673.7,0.00022739,2]
[381678237,1756311057519,-480.0,0.00022739,2]
[381678239,1756311057528,-480.0,0.00022739,2]
[381678241,1756311057537,-501.34,0.00022739,2]
[381678243,1756311057549,-229.43219548,0.00022739,2]
[381678245,1756311057559,-480.0,0.00022739,2]
[381678247,1756311057569,-480.0,0.00022739,2]
[381678249,1756311057579,-480.0,0.00022739,2]
[381678251,1756311057589,-503.48,0.00022739,2]
[381678253,1756311057599,-480.0,0.00022739,2]
[381678255,1756311057609,-480.0,0.00022739,2]
[381678257,1756311057618,-826.69,0.00022739,2]
[381678259,1756311057628,-480.0,0.00022739,2]
[381678261,1756311057637,-480.0,0.00022739,2]
[381678263,1756311057646,-480.0,0.00022739,2]
[381678265,1756311057656,-480.0,0.00022739,2]
[381678267,1756311057668,-572.02,0.00022739,2]
[381678269,1756311057678,-480.0,0.00022739,2]
[381678276,1756311057734,-480.0,0.00022739,2]
[381678278,1756311057743,-480.0,0.00022739,2]
[381678280,1756311057753,-480.0,0.00022739,2]
[381678282,1756311057762,-480.0,0.00022739,2]
[381678284,1756311057776,-480.0,0.00022739,2]
[381678286,1756311057785,-480.0,0.00022739,2]
[381678288,1756311057794,-480.0,0.00022739,2]
[381678290,1756311057803,-645.12,0.00022739,2]
[381678292,1756311057813,-480.0,0.00022739,2]
[381678294,1756311057822,-480.0,0.00022739,2]
[381678296,1756311057831,-480.0,0.00022739,2]
[381678298,1756311057841,-519.02,0.00022739,2]
[381678300,1756311057850,-480.0,0.00022739,2]
[381678302,1756311057859,-778.68,0.00022739,2]
[381678304,1756311057868,-480.0,0.00022739,2]
[381678306,1756311057878,-541.9,0.00022739,2]
[381678308,1756311057889,-539.76,0.00022739,2]
[381678309,1756311057898,-480.0,0.00022739,2]
[381678311,1756311057907,-480.0,0.00022739,2]
[381678313,1756311057917,-112.15007711,0.00022739,2]
[381680526,1756311081790,1504.07299917,0.000199,2]
[381684471,1756311187392,349.231524,0.00013699,2]
[381684473,1756311253482,500.54881233,0.000199,2]
[381684474,1756311253513,953.38842023,0.000199,2]
[381684475,1756311430208,1405.47265818,0.000199,2]
[381684477,1756311608210,1358.6235694,0.000199,2]
[381684478,1756311790308,1313.33611728,0.000199,2]
[381684484,1756311965575,1269.55824653,0.000199,2]
[381684485,1756311992107,-228.81940437,0.00020187,2]
[381684488,1756312103748,334.407373,0.00013699,2]
[381684491,1756312140296,1227.23963838,0.000199,2]
[381684492,1756312149357,160.0,0.0002,3]
[381685154,1756312240333,-334.407373,0.00020187,2]
[381685156,1756312240344,-1469.6007173,0.00020477,7]
[381685158,1756312240354,-162.286927,0.00020658,2]
[381685160,1756312240365,-1716.66121001,0.00021604,2]
[381685162,1756312240376,-1227.23963826,0.00021627,2]
[381685164,1756312240387,-500.0,0.00021666,2]
[381685166,1756312240397,-500.0,0.00021666,2]
[381685168,1756312240408,-635.41913685,0.00021666,2]
[381685170,1756312240418,-454.36033958,0.00021666,2]
[381685765,1756312246607,-45.63966042,0.00021666,2]
[381685767,1756312246617,-500.0,0.00021666,2]
[381685769,1756312246626,-500.0,0.00021666,2]
[381685771,1756312246637,-645.40872189,0.00021666,2]
[381685773,1756312246647,-500.0,0.00021666,2]
[381685775,1756312246658,-500.0,0.00021666,2]
[381685777,1756312246667,-500.0,0.00021666,2]
[381685780,1756312246680,-500.0,0.00021666,2]
[381685782,1756312246690,-500.0,0.00021666,2]
[381685784,1756312246699,-500.0,0.00021666,2]
[381685786,1756312246709,-500.0,0.00021666,2]
[381685788,1756312246719,-500.0,0.00021666,2]
[381685790,1756312246728,-380.35877616,0.00021666,2]
[381685792,1756312246737,-500.0,0.00021666,2]
[381685794,1756312246747,-325.77368876,0.00021666,2]
[381685796,1756312246757,-500.0,0.00021666,2]
[381685798,1756312246766,-500.0,0.00021666,2]
[381685800,1756312246776,-300.0,0.00021666,2]
[381685802,1756312246787,-10430.64087107,0.00021667,2]
[381685804,1756312246796,-500.0,0.00021671,2]
[381685806,1756312246806,-500.0,0.00021671,2]
[381685808,1756312246815,-500.0,0.00021671,2]
[381685810,1756312246825,-229.57127408,0.00021671,2]
[381685813,1756312246834,-500.0,0.00021671,2]
[381685815,1756312246845,-500.0,0.00021671,2]
[381685817,1756312246855,-500.0,0.00021671,2]
[381685819,1756312246864,-500.0,0.00021671,2]
[381685821,1756312246874,-194.72792766,0.00021704,2]
[381685823,1756312246883,-511.94,0.00021707,3]
[381685825,1756312246893,-370000.0,0.00021717,2]
[381685827,1756312246902,-4118.87332841,0.00021772,2]
[381685829,1756312246912,-500.0,0.00021773,2]
[381685831,1756312246923,-500.0,0.00021773,2]
[381685833,1756312246932,-500.0,0.00021773,2]
[381685835,1756312246942,-500.0,0.00021773,2]
[381685837,1756312246952,-500.0,0.00021773,2]
[381685839,1756312246962,-500.0,0.00021773,2]
[381685841,1756312246972,-500.0,0.00021773,2]
[381685843,1756312246981,-500.0,0.00021773,2]
[381685845,1756312246991,-480.0,0.00021917,2]
[381685847,1756312247001,-480.0,0.00021917,2]
[381685850,1756312247011,-480.0,0.00021917,2]
[381685852,1756312247020,-480.0,0.00021917,2]
[381685854,1756312247030,-480.0,0.00021917,2]
[381685856,1756312247041,-511.73903628,0.00021917,2]
[381685858,1756312247051,-480.0,0.00021917,2]
[381685860,1756312247061,-480.0,0.00021917,2]
[381685862,1756312247071,-480.0,0.00021917,2]
[381685864,1756312247080,-480.0,0.00021917,2]
[381685866,1756312247089,-480.0,0.00021917,2]
[381685868,1756312247099,-480.0,0.00021917,2]
[381685870,1756312247108,-480.0,0.00021917,2]
[381685872,1756312247118,-480.0,0.00021917,2]
[381685874,1756312247127,-480.0,0.00021917,2]
[381685876,1756312247137,-480.0,0.00021917,2]
[381685879,1756312247151,-480.0,0.00021917,2]
[381685881,1756312247161,-480.0,0.00021917,2]
[381685883,1756312247171,-600.0,0.00021917,2]
[381685885,1756312247180,-480.0,0.00021917,2]
[381685887,1756312247190,-480.0,0.00021917,2]
[381685889,1756312247200,-480.0,0.00021917,2]
[381685891,1756312247209,-480.0,0.00021917,2]
[381685893,1756312247219,-480.0,0.00021917,2]
[381685895,1756312247228,-480.0,0.00021917,2]
[381685897,1756312247239,-480.0,0.00021917,2]
[381685899,1756312247248,-480.0,0.00021917,2]
[381685901,1756312247258,-480.0,0.00021917,2]
[381685903,1756312247267,-480.0,0.00021917,2]
[381685905,1756312247277,-480.0,0.00021917,2]
[381685908,1756312247290,-480.0,0.00021917,2]
[381685910,1756312247300,-480.0,0.00021917,2]
[381685912,1756312247310,-480.0,0.00021917,2]
[381685914,1756312247320,-480.0,0.00021917,2]
[381685916,1756312247330,-480.0,0.00021917,2]
[381685918,1756312247339,-480.0,0.00021917,2]
[381685920,1756312247349,-480.0,0.00021917,2]
[381685922,1756312247359,-480.0,0.00021917,2]
[381685924,1756312247368,-480.0,0.00021917,2]
[381685926,1756312247378,-480.0,0.00021917,2]
[381685929,1756312247392,-480.0,0.00021917,2]
[381685931,1756312247402,-480.0,0.00021917,2]
[381685933,1756312247411,-480.0,0.00021917,2]
[381685935,1756312247421,-480.0,0.00021917,2]
[381685937,1756312247430,-480.0,0.00021917,2]
[381685939,1756312247440,-480.0,0.00021917,2]
[381685941,1756312247450,-500.0,0.00021917,2]
[381685943,1756312247460,-480.0,0.00021917,2]
[381685945,1756312247473,-480.0,0.00021917,2]
[381685947,1756312247483,-480.0,0.00021917,2]
[381685949,1756312247492,-480.0,0.00021917,2]
[381685951,1756312247502,-480.0,0.00021917,2]
[381685953,1756312247512,-480.0,0.00021917,2]
[381685955,1756312247523,-480.0,0.00021917,2]
[381685957,1756312247535,-480.0,0.00021917,2]
[381685959,1756312247546,-480.0,0.00021917,2]
[381685961,1756312247556,-480.0,0.00021917,2]
[381685963,1756312247566,-480.0,0.00021917,2]
[381685965,1756312247575,-480.0,0.00021917,2]
[381685967,1756312247586,-480.0,0.00021917,2]
[381685968,1756312247596,-480.0,0.00021917,2]
[381685969,1756312247606,-480.0,0.00021917,2]
[381685970,1756312247618,-480.0,0.00021917,2]
[381685971,1756312247628,-480.0,0.00021917,2]
[381685972,1756312247638,-480.0,0.00021917,2]
[381685973,1756312247647,-480.0,0.00021917,2]
[381685974,1756312247656,-480.0,0.00021917,2]
[381685975,1756312247666,-480.0,0.00021917,2]
[381685976,1756312247676,-480.0,0.00021917,2]
[381685977,1756312247686,-480.0,0.00021917,2]
[381685978,1756312247696,-480.0,0.00021917,2]
[381685980,1756312247706,-480.0,0.00021917,2]
[381685981,1756312247716,-480.0,0.00021917,2]
[381685983,1756312247726,-480.0,0.00021917,2]
[381685985,1756312247736,-480.0,0.00021917,2]
[381685987,1756312247746,-480.0,0.00021917,2]
[381685989,1756312247756,-480.0,0.00021917,2]
[381685991,1756312247766,-480.0,0.00021917,2]
[381685993,1756312247776,-480.0,0.00021917,2]
[381685995,1756312247788,-480.0,0.00021917,2]
[381685997,1756312247798,-480.0,0.00021917,2]
[381685999,1756312247808,-480.0,0.00021917,2]
[381686001,1756312247818,-480.0,0.00021917,2]
[381686003,1756312247828,-480.0,0.00021917,2]
[381686005,1756312247839,-480.0,0.00021917,2]
[381686007,1756312247848,-529.22,0.00021917,2]
[381686009,1756312247859,-480.0,0.00021917,2]
[381686012,1756312247869,-920.21,0.00021917,2]
[381686014,1756312247879,-480.0,0.00021917,2]
[381686016,1756312247888,-480.0,0.00021917,2]
[381686018,1756312247898,-480.0,0.00021917,2]
[381686020,1756312247908,-480.0,0.00021917,2]
[381686022,1756312247918,-480.0,0.00021917,2]
[381686024,1756312247927,-480.0,0.00021917,2]
[381686026,1756312247937,-480.0,0.00021917,2]
[381686028,1756312247947,-480.0,0.00021917,2]
[381686030,1756312247956,-480.0,0.00021917,2]
[381686032,1756312247966,-480.0,0.00021917,2]
[381686034,1756312247976,-480.0,0.00021917,2]
[381686036,1756312247985,-480.0,0.00021917,2]
[381686038,1756312247996,-480.0,0.00021917,2]
[381686040,1756312248006,-480.0,0.00021917,2]
[381686042,1756312248016,-480.0,0.00021917,2]
[381686044,1756312248026,-613.23,0.00021917,2]
[381686046,1756312248036,-480.0,0.00021917,2]
[381686048,1756312248046,-480.0,0.00021917,2]
[381686050,1756312248056,-480.0,0.00021917,2]
[381686053,1756312248066,-480.0,0.00021917,2]
[381686055,1756312248076,-480.0,0.00021917,2]
[381686057,1756312248086,-480.0,0.00021917,2]
[381686058,1756312248096,-340.62270944,0.00021917,2]
[381686061,1756312248107,-480.0,0.00021917,2]
[381686063,1756312248117,-480.0,0.00021917,2]
[381686065,1756312248127,-480.0,0.00021917,2]
[381686067,1756312248136,-480.0,0.00021917,2]
[381686069,1756312248147,-480.0,0.00021917,2]
[381686071,1756312248158,-480.0,0.00021917,2]
[381686073,1756312248168,-480.0,0.00021917,2]
[381686075,1756312248177,-480.0,0.00021917,2]
[381686077,1756312248187,-480.0,0.00021917,2]
[381686079,1756312248197,-480.0,0.00021917,2]
[381686081,1756312248208,-480.0,0.00021917,2]
[381686083,1756312248218,-480.0,0.00021917,2]
[381686085,1756312248228,-480.0,0.00021917,2]
[381686087,1756312248238,-480.0,0.00021917,2]
[381686089,1756312248249,-480.0,0.00021917,2]
[381686091,1756312248259,-714.19,0.00021917,2]
[381686093,1756312248269,-480.0,0.00021917,2]
[381686095,1756312248279,-480.0,0.00021917,2]
[381686097,1756312248291,-480.0,0.00021917,2]
[381686099,1756312248300,-480.0,0.00021917,2]
[381686101,1756312248310,-480.0,0.00021917,2]
[381686103,1756312248320,-480.0,0.00021917,2]
[381686105,1756312248331,-480.0,0.00021917,2]
[381686107,1756312248340,-480.0,0.00021917,2]
[381686109,1756312248350,-480.0,0.00021917,2]
[381686111,1756312248360,-480.0,0.00021917,2]
[381686113,1756312248371,-480.0,0.00021917,2]
[381686116,1756312248381,-527.79,0.00021917,2]
[381686118,1756312248391,-480.0,0.00021917,2]
[381686120,1756312248401,-480.0,0.00021917,2]
[381686122,1756312248411,-480.0,0.00021917,2]
[381686124,1756312248421,-632.24,0.00021917,2]
[381686126,1756312248431,-480.0,0.00021917,2]
[381686128,1756312248441,-480.0,0.00021917,2]
[381686130,1756312248451,-480.0,0.00021917,2]
[381686132,1756312248461,-480.0,0.00021917,2]
[381686134,1756312248475,-480.0,0.00021917,2]
[381686136,1756312248485,-480.0,0.00021917,2]
[381686138,1756312248495,-485.3,0.00021917,2]
[381686140,1756312248506,-480.0,0.00021917,2]
[381686142,1756312248515,-480.0,0.00021917,2]
[381686144,1756312248532,-480.0,0.00021917,2]
[381686147,1756312248548,-480.0,0.00021917,2]
[381686149,1756312248559,-912.04,0.00021917,2]
[381686151,1756312248569,-480.0,0.00021917,2]
[381686153,1756312248580,-480.0,0.00021917,2]
[381686155,1756312248590,-480.0,0.00021917,2]
[381686157,1756312248600,-480.0,0.00021917,2]
[381686159,1756312248610,-759.72,0.00021917,2]
[381686161,1756312248621,-480.0,0.00021917,2]
[381686163,1756312248631,-648.9,0.00021917,2]
[381686165,1756312248642,-480.0,0.00021917,2]
[381686167,1756312248652,-480.0,0.00021917,2]
[381686169,1756312248662,-480.0,0.00021917,2]
[381686171,1756312248673,-1052.6,0.00021917,2]
[381686173,1756312248683,-480.0,0.00021917,2]
[381686176,1756312248694,-789.83,0.00021917,2]
[381686177,1756312248704,-480.0,0.00021917,2]
[381686179,1756312248715,-588.14,0.00021917,2]
[381686182,1756312248725,-480.0,0.00021917,2]
[381686184,1756312248735,-480.0,0.00021917,2]
[381686186,1756312248745,-502.86,0.00021917,2]